{"text_format":"3","workbook":"xlsx","n_sheets":6,"sheets":["Registo de Chamadas de Vendas","Contactos do Cliente","Antes da Chamada","Primeira Chamada","Informações de Vendas","Dar Seguimento"],"not_rendered":{"defined_names":14},"read":"whole","date_system":"1900"}

{"sheet":"Registo de Chamadas de Vendas","index":0,"n_rows":13,"n_cols":7,"rows_kept":13}
[null," Nome da Empresa"]
[null,"Registo de Chamadas de Vendas"]
[null,"Chamada #","Cliente","Empresa","Data","Hora","Notas"]
[null,1,"Alexandre Azevedo",{"$f":"IF(RegistoDeChamadasDeVendas[[#This Row],[Cliente]]=\"\",\"\",IFERROR(VLOOKUP(RegistoDeChamadasDeVendas[[#This Row],[Cliente]],ContactoDoCliente[],2,0),\"Not Found\"))","v":"Proseware, Inc."},{"$f":"TODAY()-5","v":"2016-10-15"},"08:30:00"]
[null,2,"Samuel Ferreira",{"$f":"IF(RegistoDeChamadasDeVendas[[#This Row],[Cliente]]=\"\",\"\",IFERROR(VLOOKUP(RegistoDeChamadasDeVendas[[#This Row],[Cliente]],ContactoDoCliente[],2,0),\"Not Found\"))","v":"Litware, Inc."},{"$f":"TODAY()-5","v":"2016-10-15"},"09:00:00"]
[null,3,"Fernanda Sarmento",{"$f":"IF(RegistoDeChamadasDeVendas[[#This Row],[Cliente]]=\"\",\"\",IFERROR(VLOOKUP(RegistoDeChamadasDeVendas[[#This Row],[Cliente]],ContactoDoCliente[],2,0),\"Not Found\"))","v":"Northwind Traders"},"2016-10-15","09:30:00"]
[null,4,"Duarte Martins",{"$f":"IF(RegistoDeChamadasDeVendas[[#This Row],[Cliente]]=\"\",\"\",IFERROR(VLOOKUP(RegistoDeChamadasDeVendas[[#This Row],[Cliente]],ContactoDoCliente[],2,0),\"Not Found\"))","v":"Lucerne Publishing"},"2016-10-15","10:00:00"]
[null,5,"Francisco Sousa",{"$f":"IF(RegistoDeChamadasDeVendas[[#This Row],[Cliente]]=\"\",\"\",IFERROR(VLOOKUP(RegistoDeChamadasDeVendas[[#This Row],[Cliente]],ContactoDoCliente[],2,0),\"Not Found\"))","v":"Margie's Travel"},"2016-10-15","10:30:00"]
[null,6,"Alexandre Azevedo",{"$f":"IF(RegistoDeChamadasDeVendas[[#This Row],[Cliente]]=\"\",\"\",IFERROR(VLOOKUP(RegistoDeChamadasDeVendas[[#This Row],[Cliente]],ContactoDoCliente[],2,0),\"Not Found\"))","v":"Proseware, Inc."},{"$f":"TODAY()-3","v":"2016-10-17"},"11:00:00"]
[null,7,"Samuel Ferreira",{"$f":"IF(RegistoDeChamadasDeVendas[[#This Row],[Cliente]]=\"\",\"\",IFERROR(VLOOKUP(RegistoDeChamadasDeVendas[[#This Row],[Cliente]],ContactoDoCliente[],2,0),\"Not Found\"))","v":"Litware, Inc."},{"$f":"TODAY()-3","v":"2016-10-17"},"11:30:00"]
[null,8,"Alexandre Azevedo",{"$f":"IF(RegistoDeChamadasDeVendas[[#This Row],[Cliente]]=\"\",\"\",IFERROR(VLOOKUP(RegistoDeChamadasDeVendas[[#This Row],[Cliente]],ContactoDoCliente[],2,0),\"Not Found\"))","v":"Proseware, Inc."},{"$f":"TODAY()-1","v":"2016-10-19"},"12:00:00"]
[null,9,"Francisco Sousa",{"$f":"IF(RegistoDeChamadasDeVendas[[#This Row],[Cliente]]=\"\",\"\",IFERROR(VLOOKUP(RegistoDeChamadasDeVendas[[#This Row],[Cliente]],ContactoDoCliente[],2,0),\"Not Found\"))","v":"Margie's Travel"},{"$f":"TODAY()-1","v":"2016-10-19"},"12:30:00"]
[null,10,"Francisco Sousa",{"$f":"IF(RegistoDeChamadasDeVendas[[#This Row],[Cliente]]=\"\",\"\",IFERROR(VLOOKUP(RegistoDeChamadasDeVendas[[#This Row],[Cliente]],ContactoDoCliente[],2,0),\"Not Found\"))","v":"Margie's Travel"},{"$f":"TODAY()","v":"2016-10-20"},"13:00:00"]

{"sheet":"Contactos do Cliente","index":1,"n_rows":8,"n_cols":8,"rows_kept":8}
[null,{"$f":"NomeDaEmpresa","v":" Nome da Empresa"}]
[null,"Informações de Contacto do Cliente"]
[null,"Nome do Cliente","Nome da Empresa","Endereço","Cidade, Código Postal","Telefone Principal","Telefone Secundário","E-mail"]
[null,"Samuel Ferreira","Litware, Inc.","Rua das Flores N.º 100","4430-089 Porto, Portugal",{"v":221234567,"d":"221,234,567"},{"v":222345678,"d":"222,345,678"},"samuel@litwareinc.com"]
[null,"Duarte Martins","Lucerne Publishing","Rua das Margaridas N.º 456","1289-097 Lisboa, Portugal",{"v":212345678,"d":"212,345,678"},{"v":213456789,"d":"213,456,789"},"duarte@lucernepublishing.com"]
[null,"Francisco Sousa","Margie's Travel","Rua das Camélias N.º 980","6754-034 Viseu, Portugal",{"v":232456789,"d":"232,456,789"},{"v":232567890,"d":"232,567,890"},"francisco@margiestravel.com"]
[null,"Fernanda Sarmento","Northwind Traders","Rua dos Cravos N.º 907","2909-950 Aveiro, Portugal",{"v":234567890,"d":"234,567,890"},{"v":234678901,"d":"234,678,901"},"fernanda@northwindtraders.com"]
[null,"Alexandre Azevedo","Proseware, Inc.","Rua das Rosas N.º 878","8904-465 Leiria, Portugal",{"v":244678901,"d":"244,678,901"},{"v":244789012,"d":"244,789,012"},"alexandre@proseware.com"]

{"sheet":"Antes da Chamada","index":2,"n_rows":13,"n_cols":3,"rows_kept":13}
[null,{"$f":"NomeDaEmpresa","v":" Nome da Empresa"}]
[null,"Lista de Verificação de Chamadas de Vendas"]
[null,"Caixa de Verificação","Antes da chamada"]
[null,null,"Rever histórico do cliente"]
[null,null,"Rever histórico do empregador do cliente"]
[null,null,"Rever prioridades e estratégia de vendas"]
[null,null,"Adicionar item"]
[null,null,"Adicionar item"]
[null,null,"Adicionar item"]
[null,null,"Adicionar item"]
[null,null,"Adicionar item"]
[null,null,"Adicionar item"]
[null,null,"Adicionar item"]

{"sheet":"Primeira Chamada","index":3,"n_rows":13,"n_cols":3,"rows_kept":13}
[null,{"$f":"NomeDaEmpresa","v":" Nome da Empresa"}]
[null,"Lista de Verificação de Chamadas de Vendas"]
[null,"Caixa de Verificação","Primeira chamada"]
[null,null,"Chamada direta para a pessoa adequada"]
[null,null,"Introdução clara"]
[null,null,"Adicionar item"]
[null,null,"Adicionar item"]
[null,null,"Adicionar item"]
[null,null,"Adicionar item"]
[null,null,"Adicionar item"]
[null,null,"Adicionar item"]
[null,null,"Adicionar item"]
[null,null,"Adicionar item"]

{"sheet":"Informações de Vendas","index":4,"n_rows":13,"n_cols":3,"rows_kept":13}
[null,{"$f":"NomeDaEmpresa","v":" Nome da Empresa"}]
[null,"Lista de Verificação de Chamadas de Vendas"]
[null,"Caixa de Verificação","Informações de vendas"]
[null,null,"Introdução clara e apelativa do produto/serviço"]
[null,null,"Abranger todas as informações básicas"]
[null,null,"Mencionar a presença na Web (por exemplo, site, redes sociais)"]
[null,null,"Adicionar item"]
[null,null,"Adicionar item"]
[null,null,"Adicionar item"]
[null,null,"Adicionar item"]
[null,null,"Adicionar item"]
[null,null,"Adicionar item"]
[null,null,"Adicionar item"]

{"sheet":"Dar Seguimento","index":5,"n_rows":13,"n_cols":3,"rows_kept":13}
[null,{"$f":"NomeDaEmpresa","v":" Nome da Empresa"}]
[null,"Lista de Verificação de Chamadas de Vendas"]
[null,"Caixa de Verificação","Informação para dar seguimento"]
[null,null,"Informações de contacto do cliente"]
[null,null,"Informações pessoais do cliente"]
[null,null,"Preferências do cliente"]
[null,null,"Contacto reagendado?"]
[null,null,"Venda efetuada?"]
[null,null,"Adicionar item"]
[null,null,"Adicionar item"]
[null,null,"Adicionar item"]
[null,null,"Adicionar item"]
[null,null,"Adicionar item"]